bitfinex-derivatives/quotes_ETHF0:USTF0_20250828
["timestamp","ask_amount","ask_price","bid_price","bid_amount"]
[1756424713501,0.3047,4503.2,4502.9,32.0452]
[1756424713701,0.02,4505.1,4502.9,31.97]
[1756424713702,0.5079,4503.0,4502.9,31.97]
[1756424713901,0.5079,4503.0,4502.9,32.196]
[1756424714604,0.5079,4503.0,4502.9,32.2712]
[1756424717403,0.3047,4504.4,4502.9,32.2712]
[1756424717609,0.3047,4504.3,4502.9,32.2712]
[1756424717907,0.3047,4504.2,4503.0,0.0752]
[1756424718103,0.52674001,4504.2,4503.0,0.0752]
[1756424718407,0.3047,4504.2,4503.0,0.0752]
[1756424719510,0.5079,4503.1,4503.0,0.1955]
[1756424719711,0.3047,4504.6,4503.2,0.0752]
[1756424720008,0.3047,4504.4,4503.2,0.0752]
[1756424720204,0.3047,4504.2,4503.2,0.0752]
[1756424720903,0.5079,4504.2,4504.1,0.1955]
[1756424721103,0.5079,4504.2,4504.1,0.4215]
[1756424722410,0.5079,4504.2,4503.6,0.0752]
[1756424722610,0.5079,4504.2,4503.1,0.0752]
[1756424722807,0.5079,4504.2,4503.3,0.0752]
[1756424723706,0.5079,4504.2,4504.1,0.1955]
[1756424723908,0.5079,4504.2,4504.1,0.4215]
[1756424724507,0.5079,4504.2,4504.1,0.3463]
[1756424724710,0.5079,4504.2,4504.1,0.226]
[1756424725414,0.5079,4504.2,4504.1,0.4215]
[1756424725807,0.5079,4504.2,4504.1,0.226]
[1756424726515,0.5079,4504.2,4504.1,0.3463]
[1756424726808,0.3047,4505.6,4504.1,0.4215]
[1756424727113,0.5694837,4505.5,4504.1,0.4215]
[1756424727313,0.2032,4504.2,4504.1,0.4215]
[1756424727504,0.2032,4504.2,4504.1,0.226]
[1756424728214,0.5079,4504.2,4504.1,0.226]
[1756424729919,0.5079,4504.2,4504.1,0.3463]
[1756424730211,0.5079,4504.2,4504.1,0.1203]
[1756424730416,0.5079,4504.2,4504.1,0.3463]
[1756424730618,0.5079,4504.2,4504.1,0.4215]
[1756424731419,0.5079,4504.2,4504.1,0.226]
[1756424734421,0.5079,4504.2,4503.3,40.8]
[1756424734621,0.2032,4504.2,4503.4,0.52214]
[1756424734919,0.3047,4505.6,4503.4,0.52214]
[1756424735120,0.3047,4505.6,4503.5,0.0741]
[1756424735121,0.3047,4505.4,4503.5,0.0741]
[1756424735424,0.3047,4505.2,4503.6,0.0741]
[1756424735624,0.3047,4505.3,4503.6,0.222]
[1756424735825,0.3047,4505.1,4503.5,0.0741]
[1756424736317,0.3047,4505.1,4503.7,0.0753]
[1756424736522,0.3031,4505.6,4503.9,0.0753]
[1756424736723,0.3031,4505.4,4504.1,0.0753]
[1756424736923,0.3031,4505.2,4504.1,0.0753]
[1756424739321,0.3031,4505.2,4504.2,0.3465]
[1756424739519,8.926,4505.7,4503.4,1.9933742]
[1756424739520,0.5049,4504.3,4503.9,0.0753]
[1756424739724,0.5049,4504.3,4504.0,0.226]
[1756424740925,0.5049,4504.3,4503.5,0.0753]
[1756424741222,0.2018,4503.4,4503.3,1.9933742]
[1756424741430,0.5049,4503.2,4503.1,1.9933742]
[1756424741621,0.5049,4503.2,4503.1,0.226]
[1756424741924,0.5049,4503.2,4503.1,0.4218]
[1756424742523,0.5049,4503.2,4502.9,31.97]
[1756424742524,0.2018,4503.2,4502.9,31.97]
[1756424742822,5.27594828,4505.9,4502.0,2.7851832]
[1756424742823,0.5049,4502.1,4502.0,0.226]
[1756424743030,0.70223513,4502.1,4502.0,0.226]
[1756424744430,0.5049,4502.1,4502.0,0.226]
[1756424745127,0.5049,4502.1,4502.0,0.3465]
[1756424745327,0.70192577,4502.1,4502.0,0.4218]
[1756424747427,0.70192577,4502.1,4501.5,0.0753]
[1756424747631,0.5049,4502.1,4502.0,0.226]
[1756424747831,0.49998259,4502.1,4502.0,0.4218]
[1756424748027,0.19688259,4502.1,4502.0,0.4218]
[1756424748831,0.19688259,4502.1,4502.0,4.64392]
[1756424749025,0.02,4504.6,4502.3,0.39975]
[1756424749327,0.02,4504.6,4502.0,4.226]
[1756424749328,0.3031,4504.4,4502.4,0.39974]
[1756424749624,0.3031,4504.4,4502.1,0.22206]
[1756424749625,0.3031,4504.4,4502.5,0.226]
[1756424749833,0.22206,4504.3,4502.5,0.226]
[1756424750027,0.3031,4504.2,4502.6,0.22203]
[1756424750532,0.3031,4505.1,4502.7,0.62176]
[1756424750729,0.7908429,4505.0,4502.7,0.39971]
[1756424751030,0.3031,4504.8,4502.8,0.22203]
[1756424751232,0.3031,4504.6,4502.8,0.22203]
[1756424751428,0.22203,4505.0,4502.7,0.39971]
[1756424751633,0.3031,4504.8,4502.8,0.22203]
[1756424751933,0.3031,4504.6,4502.8,0.22203]
[1756424752127,0.17545842,4505.1,4502.7,0.39971]
[1756424752434,0.17545842,4505.1,4502.5,0.226]
[1756424752435,0.79083299,4505.0,4502.8,0.62174]
[1756424752633,0.226,4505.2,4502.8,0.39971]
[1756424752634,0.56880299,4504.9,4502.8,0.39971]
[1756424752935,0.3031,4504.7,4502.9,0.22202]
[1756424753127,0.56880299,4504.6,4503.0,0.226]
[1756424753329,0.3031,4504.5,4503.0,0.226]
[1756424753825,0.3031,4504.3,4503.0,0.226]
[1756424757231,0.3031,4504.3,4502.4,0.39974]
[1756424757431,0.3031,4505.0,4502.5,0.62573]
[1756424757629,0.56893364,4504.9,4502.6,0.39972]
[1756424757833,0.56893364,4504.8,4502.7,0.39971]
[1756424758034,0.3031,4504.6,4502.6,0.22203]
[1756424758331,0.22203,4505.3,4502.8,0.99927]
[1756424758529,0.3031,4505.2,4502.9,74.7773742]
[1756424758832,0.22202001,4505.2,4503.4,0.39965]
[1756424759029,0.3031,4505.3,4503.5,0.226]
[1756424759328,0.3031,4505.3,4503.5,0.44800999]
[1756424759529,0.3031,4505.1,4503.5,0.226]
[1756424759731,0.3031,4505.1,4503.6,0.222]
[1756424759931,0.18128046,4505.6,4503.6,0.222]
[1756424759932,0.5049,4503.7,4503.6,0.222]
[1756424760131,0.5049,4503.7,4503.6,0.448]
[1756424760336,0.3031,4505.3,4503.6,0.226]
[1756424760634,0.2018,4503.7,4503.6,0.226]
[1756424760834,0.5049,4503.7,4503.6,0.226]
[1756424761036,0.70621194,4503.7,4503.6,0.226]
[1756424761235,0.70621194,4503.7,4503.0,0.39969]
[1756424761536,0.2018,4503.2,4503.1,0.225]
[1756424761736,0.70621194,4503.2,4503.1,0.225]
[1756424762137,0.70621194,4503.2,4502.9,31.984]
[1756424762339,0.20131194,4503.1,4503.0,0.226]
[1756424762836,0.5049,4503.9,4503.1,0.39968]
[1756424763038,0.20137327,4503.8,4503.1,0.62173]
[1756424763235,0.20137327,4503.7,4503.1,0.39968]
[1756424763431,0.20137327,4503.6,4503.0,0.62569]
[1756424763632,0.20137327,4503.5,4503.0,0.84774]
[1756424763839,0.5049,4503.9,4503.0,0.84774]
[1756424764138,0.40317885,4503.8,4503.1,0.62173]
[1756424764340,0.20137885,4503.7,4503.1,0.39968]
[1756424764534,0.20138879,4503.6,4503.2,0.39967]
[1756424764837,31.984,4505.4,4503.3,0.39966]
[1756424765137,0.3031,4505.2,4503.1,0.62169]
[1756424765337,0.3031,4505.0,4503.3,0.39966]
[1756424765537,0.20139652,4504.9,4503.3,0.39966]
[1756424765737,0.2018,4503.0,4502.9,31.984]
[1756424765934,0.70625358,4503.0,4502.9,32.209]
[1756424766933,0.2913,4502.9,4501.5,1.9933742]
[1756424767138,0.2913,4502.7,4501.6,0.226]
[1756424767339,0.1962,4501.8,4501.7,41.026]
[1756424767637,0.4875,4501.8,4501.7,0.226]
[1756424767940,0.20135358,4501.8,4501.7,0.226]
[1756424768140,0.20135358,4501.8,4501.7,45.026]
[1756424768344,1.21121121,4504.7,4501.7,45.026]
[1756424768535,0.2913,4504.5,4501.7,41.026]
[1756424768736,0.77079473,4504.4,4501.7,41.026]
[1756424768936,0.2913,4504.2,4501.7,41.026]
[1756424769142,0.2913,4504.0,4501.7,41.026]
[1756424769340,0.2913,4503.8,4501.7,41.026]
[1756424769539,0.2014401,4503.7,4502.0,0.39978]
[1756424769737,0.2913,4503.5,4502.1,0.226]
[1756424769937,0.2913,4503.3,4502.1,0.226]
[1756424770137,0.2014401,4503.2,4502.1,0.226]
[1756424770340,0.2014401,4503.1,4502.1,0.226]
[1756424770538,0.2913,4503.3,4502.1,0.62577]
[1756424770539,0.2014401,4503.0,4502.1,0.62577]
[1756424770741,0.2014401,4502.9,4502.1,0.226]
[1756424770943,0.2014401,4502.8,4502.1,0.226]
[1756424771243,0.2014401,4502.7,4502.1,0.226]
[1756424771440,0.2014401,4502.6,4502.1,0.226]
[1756424771639,0.2014401,4502.5,4502.1,0.226]
[1756424771939,0.2014401,4502.4,4502.1,0.226]
[1756424772139,0.2913,4503.0,4502.1,0.226]
[1756424772339,0.38717365,4502.9,4502.1,0.226]
[1756424772539,0.19097365,4502.8,4502.1,0.226]
[1756424772740,0.19097365,4502.7,4502.6,0.0017]
[1756424772940,0.4875,4502.8,4502.7,0.001]
[1756424773145,0.1962,4502.7,4502.0,0.39977]
[1756424773343,0.1962,4502.5,4502.4,0.0017]
[1756424773545,0.19098787,4502.5,4502.4,0.0027]
[1756424773739,0.19098787,4502.8,4502.4,0.0027]
[1756424773940,0.48228787,4502.7,4502.6,0.0027]
[1756424774145,0.48228787,4502.7,4502.6,0.2287]
[1756424774443,0.2913,4502.7,4502.6,0.2287]
[1756424774643,0.19108156,4502.7,4502.6,0.2287]
[1756424775247,0.67858156,4502.7,4502.6,0.2287]
[1756424777141,0.67858156,4502.7,4502.6,0.226]
[1756424779145,0.2913,4502.6,4501.8,0.001]
[1756424779345,0.4875,4502.0,4501.9,0.2287]
[1756424779935,0.67859917,4502.0,4501.9,0.2287]
[1756424780645,0.67859917,4502.0,4501.9,0.0027]
[1756424780848,0.67859917,4502.0,4501.9,0.2287]
[1756424781044,0.67859917,4502.0,4501.9,0.0027]
[1756424781346,0.67859917,4502.0,4501.9,0.2287]
[1756424781745,0.19109917,4502.0,4501.9,0.2287]
[1756424783348,0.069,4504.3,4501.9,0.2277]
[1756424783650,0.2913,4504.1,4502.0,0.001]
[1756424783844,0.2913,4503.9,4502.0,0.001]
[1756424784052,0.069,4504.3,4502.0,0.001]
[1756424784053,0.2913,4503.7,4502.0,0.001]
[1756424784239,0.2913,4503.5,4502.0,0.001]
[1756424784549,0.2913,4503.3,4502.0,0.001]
[1756424784748,0.4875,4502.1,4502.0,0.0017]
[1756424784945,0.4875,4502.1,4502.0,0.2277]
[1756424785146,0.67846377,4502.1,4502.0,0.2287]
[1756424785545,0.48226377,4502.1,4502.0,0.2287]
[1756424787050,0.67846377,4502.1,4502.0,0.2287]
[1756424787249,0.4875,4502.1,4502.0,0.2287]
[1756424789056,0.67199174,4502.1,4502.0,0.2287]
[1756424790053,0.67199174,4502.1,4502.0,0.2277]
[1756424790849,0.67199174,4502.1,4502.0,0.2287]
[1756424791960,0.67199174,4502.1,4502.0,0.2277]
[1756424792254,0.38069174,4502.1,4502.0,0.226]
[1756424792651,0.67199174,4502.1,4502.0,0.226]
[1756424793059,0.67199174,4502.1,4501.7,42.7933742]
[1756424793350,0.4875,4501.9,4501.8,0.226]
[1756424793657,0.67215558,4501.9,4501.8,0.2277]
[1756424793854,0.2913,4504.4,4502.4,0.39974]
[1756424794055,0.4875,4502.6,4502.5,0.2277]
[1756424794255,0.6721536,4502.6,4502.2,0.001]
[1756424794453,0.4875,4502.3,4502.2,0.0027]
[1756424794652,0.6721536,4502.3,4502.2,0.2287]
[1756424795056,0.6721536,4502.3,4502.2,41.0287]
[1756424795255,0.4759536,4502.3,4502.2,41.0287]
[1756424795556,0.1962,4502.8,4502.7,0.40071]
[1756424795756,0.1962,4503.4,4503.3,0.0017]
[1756424796058,0.17734039,4505.6,4503.4,0.40065]
[1756424796059,0.2913,4505.1,4503.4,0.40065]
[1756424796258,0.2845,4504.9,4503.4,0.40065]
[1756424796460,0.18064788,4505.8,4503.5,40.8]
[1756424796663,0.2076,4503.7,4503.6,0.226]
[1756424796854,0.4921,4503.7,4503.6,0.226]
[1756424797050,0.17943643,4506.0,4503.7,0.39963]
[1756424797255,0.79267307,4505.9,4503.7,1.99481288]
[1756424797456,0.4921,4503.8,4503.6,0.62563]
[1756424797752,0.2845,4503.7,4503.6,0.62563]
[1756424798767,0.1748757,4506.0,4503.7,0.39963]
[1756424798973,0.2845,4505.8,4503.7,0.39963]
[1756424799264,0.2845,4505.8,4503.6,0.226]
[1756424799265,0.2845,4505.6,4503.6,0.62563]
[1756424799470,0.22197,4506.3,4503.7,0.39962]
[1756424799666,0.79162496,4506.2,4503.6,0.226]
[1756424799868,0.85414496,4506.1,4503.6,0.226]
[1756424800067,0.2845,4505.9,4503.9,0.3996]
[1756424800262,0.2076,4504.2,4504.1,0.39959]
[1756424800469,0.4921,4504.2,4504.1,0.39959]
[1756424801074,0.2845,4506.3,4504.2,0.39958]
[1756424801270,0.56939034,4506.2,4504.3,0.62557]
[1756424801578,0.4921,4504.4,4504.3,0.226]
[1756424802673,0.4921,4504.4,4504.3,41.026]
[1756424809976,0.2845,4506.3,4504.3,41.026]
[1756424810282,0.2845,4506.2,4504.3,41.026]
[1756424810579,0.22196,4506.2,4504.3,41.026]
[1756424810774,0.22196,4506.1,4504.3,41.026]
[1756424811081,31.987,4506.6,4504.3,41.026]
[1756424811082,0.2845,4506.2,4504.3,41.026]
[1756424811274,0.50645,4506.5,4504.3,41.026]
[1756424811478,0.2845,4506.4,4504.3,41.026]
[1756424811673,0.22196,4506.4,4504.3,41.026]
[1756424811869,0.22196,4506.3,4504.3,41.026]
[1756424812077,0.17596725,4506.5,4504.3,41.026]
[1756424812278,0.2845,4506.3,4504.3,41.026]
[1756424812572,0.2845,4506.4,4504.3,41.026]
[1756424812779,0.2845,4506.2,4504.3,41.026]
[1756424812979,0.4921,4504.4,4504.3,40.8]
[1756424813280,0.4921,4504.4,4504.3,41.025]
[1756424815883,0.18138107,4506.5,4504.3,41.025]
[1756424816083,0.79053565,4506.4,4504.3,41.025]
[1756424816382,0.2845,4506.2,4504.3,41.025]
[1756424816584,0.40416808,4506.5,4504.3,41.025]
[1756424816775,0.2845,4506.3,4504.3,41.025]
[1756424817283,0.22196,4506.2,4504.3,41.025]
[1756424817480,0.2845,4506.3,4504.3,41.025]
[1756424817679,0.22196,4506.4,4504.3,41.025]
[1756424817881,0.2845,4506.2,4504.3,41.025]
[1756424818182,0.22196,4506.4,4504.3,41.42457]
[1756424818381,0.22196,4506.4,4504.3,41.025]
[1756424818578,0.2845,4506.4,4504.3,41.42457]
[1756424818784,0.22196,4506.3,4504.3,41.42457]
[1756424819083,0.2845,4506.3,4504.3,41.42457]
[1756424819284,0.17682534,4506.5,4504.3,41.42457]
[1756424819480,0.22196,4506.4,4504.3,41.42457]
[1756424819686,0.2845,4506.4,4504.3,41.42457]
[1756424820386,0.18188258,4506.5,4504.3,41.42457]
[1756424820580,0.2845,4506.3,4504.3,41.42457]
[1756424820781,0.2845,4506.4,4504.3,40.8]
[1756424821080,0.22196,4506.3,4504.4,0.225]
[1756424821282,0.2845,4506.4,4504.4,0.225]
[1756424821482,0.2845,4506.2,4504.4,0.225]
[1756424821989,0.2076,4504.4,4503.6,1.99481288]
[1756424822185,0.4921,4504.4,4503.4,1.99481288]
[1756424822386,0.4921,4504.4,4503.5,2.21981288]
[1756424822982,0.4921,4504.4,4503.6,0.39964]
[1756424823284,0.2845,4506.4,4503.5,6.21981288]
[1756424823484,0.56997389,4506.3,4504.1,0.39959]
[1756424823787,0.56997389,4506.2,4504.3,0.39957]
[1756424823982,0.85447389,4506.1,4504.4,0.095]
[1756424824191,0.2845,4507.1,4504.9,0.39952]
[1756424824490,0.9731198,4507.0,4505.0,0.077]
[1756424824678,0.57059212,4506.9,4505.1,0.3995]
[1756424824987,0.2845,4506.8,4505.0,0.077]
[1756424825183,0.2845,4506.7,4505.3,0.39949]
[1756424825388,0.2845,4506.7,4505.4,0.62447]
[1756424825686,0.4921,4506.7,4505.6,0.39946]
[1756424826282,0.4921,4506.7,4505.7,0.39945]
[1756424827185,0.4921,4506.7,4505.6,0.17528857]
[1756424827386,31.973,4508.1,4506.1,0.39941]
[1756424827693,0.8798441,4508.0,4506.2,0.065]
[1756424827888,0.5707441,4507.9,4506.2,40.865]
[1756424828091,0.5707441,4507.8,4506.2,40.865]
[1756424828286,0.22186,4508.3,4506.2,40.865]
[1756424828486,0.57054131,4508.2,4506.2,40.865]
[1756424828781,0.57054131,4508.1,4506.2,40.865]
[1756424828980,0.061,4508.8,4506.2,40.865]
[1756424829191,0.509,4507.1,4507.0,0.22187]
[1756424829390,0.509,4507.1,4507.0,0.44687]
[1756424829586,0.509,4507.1,4507.0,0.225]
[1756424830390,0.509,4507.1,4507.0,0.44687]
[1756424830585,0.509,4507.1,4507.0,0.22187]
[1756424830792,0.1999,4506.3,4506.0,0.225]
[1756424830987,0.509,4506.2,4506.1,0.225]
[1756424831687,0.509,4505.3,4505.2,40.8]
[1756424831990,0.509,4505.3,4505.2,41.025]
[1756424832390,0.509,4505.3,4505.2,41.24687]
[1756424833687,0.058,4507.9,4505.2,41.24687]
[1756424833893,0.3091,4507.7,4505.2,40.8]
[1756424834193,0.509,4505.6,4505.5,0.22187]
[1756424834397,0.509,4505.5,4505.3,0.225]
[1756424834886,0.058,4507.9,4505.3,0.225]
[1756424835088,0.1999,4505.7,4505.6,0.22187]
[1756424835393,0.509,4505.7,4505.6,0.22187]
[1756424835595,0.509,4505.7,4505.6,0.2220392]
[1756424836094,0.509,4505.7,4505.2,40.8]
[1756424836389,0.509,4505.7,4505.6,0.22187]
[1756424836791,0.1999,4505.6,4505.3,0.225]
[1756424836992,0.509,4505.5,4505.3,0.225]
[1756424837487,0.509,4505.5,4505.4,0.22187]
[1756424837693,0.052,4507.7,4505.4,0.22187]
[1756424837996,0.3091,4507.6,4505.3,0.225]
[1756424838195,0.509,4506.3,4505.3,0.62449]
[1756424838395,0.509,4506.3,4505.4,0.39947]
[1756424838590,0.3091,4508.1,4505.4,0.39947]
[1756424838793,0.052,4508.2,4505.3,0.225]
[1756424838794,0.509,4506.7,4505.5,0.39947]
[1756424838998,0.509,4506.7,4505.6,0.225]
[1756424839390,0.509,4506.7,4506.6,0.22187]
[1756424839587,0.509,4506.7,4506.6,0.44687]
[1756424839792,0.509,4506.7,4506.6,0.225]
[1756424840290,0.3091,4506.6,4505.3,0.39949]
[1756424840499,0.3091,4508.2,4505.4,0.225]
[1756424840796,0.3091,4508.2,4505.2,42.79481288]
[1756424840797,0.509,4506.7,4505.2,42.79481288]
[1756424840993,0.1999,4506.2,4506.1,0.22187]
[1756424841192,0.509,4506.2,4506.1,0.44687]
[1756424841497,0.509,4506.2,4506.1,0.225]
[1756424843001,0.509,4506.2,4505.2,40.8]
[1756424843199,0.1999,4506.2,4505.3,0.225]
[1756424843407,0.1999,4506.2,4505.8,0.22187]
[1756424843597,0.3091,4506.1,4505.9,0.225]
[1756424843903,0.3091,4505.9,4504.8,31.973]
[1756424844097,0.509,4505.8,4505.7,0.22187]
[1756424844400,0.1999,4505.8,4505.7,0.225]
[1756424844700,0.509,4505.8,4505.7,0.44687]
[1756424844998,0.1999,4504.9,4504.8,33.96781288]
[1756424845203,0.509,4504.9,4504.8,32.198]
[1756424845701,0.509,4504.9,4504.8,31.973]
[1756424845902,0.509,4504.9,4504.8,32.198]
[1756424846405,0.509,4504.9,4504.8,31.973]
[1756424846604,0.509,4504.9,4504.8,32.198]
[1756424847798,0.3091,4504.9,4504.8,32.198]
[1756424848095,0.3091,4507.3,4504.8,32.198]
[1756424848305,0.3091,4505.1,4504.8,32.198]
[1756424848700,0.3091,4506.8,4504.8,32.198]
[1756424848900,0.3091,4505.0,4504.8,32.198]
[1756424849095,0.509,4505.3,4505.2,0.22187]
[1756424849303,0.509,4505.3,4505.2,0.44687]
[1756424851901,0.509,4505.3,4505.2,0.22187]
[1756424852197,0.509,4505.3,4505.2,0.44687]
[1756424853911,0.509,4504.9,4504.8,31.973]
[1756424854209,0.509,4504.9,4504.8,32.198]
[1756424854505,0.1999,4504.9,4503.6,1.99481288]
[1756424854697,0.1999,4504.9,4503.3,31.968]
[1756424854698,0.3091,4506.5,4503.7,0.225]
[1756424854897,0.509,4504.3,4504.2,0.22187]
[1756424855101,0.509,4504.3,4504.2,0.44687]
[1756424856604,0.059,4506.3,4504.2,4.44687]
[1756424856809,0.83472712,4506.2,4504.2,0.225]
[1756424857110,0.4717,4505.0,4504.9,0.22187]
[1756424857304,0.4717,4505.0,4504.9,0.44687]
[1756424857505,0.2826,4506.3,4504.9,0.44687]
[1756424857807,0.4717,4505.4,4504.9,0.225]
[1756424858007,0.2826,4505.3,4504.9,0.225]
[1756424858208,0.1891,4505.3,4504.9,0.225]
[1756424858408,0.4717,4505.2,4504.9,0.225]
[1756424858608,0.1891,4505.2,4504.9,0.225]
[1756424858910,0.2826,4505.0,4504.9,0.225]
[1756424859111,0.4717,4505.0,4504.9,0.225]
[1756424859508,0.048,4506.9,4504.9,0.44687]
[1756424859714,0.2826,4506.7,4504.9,0.225]
[1756424860115,0.1891,4505.9,4504.9,0.225]
[1756424860717,0.4717,4505.9,4505.8,0.22187]
[1756424861016,0.4717,4505.9,4505.8,0.44687]
[1756424861318,0.4717,4505.9,4505.8,0.225]
[1756424863622,0.2826,4505.9,4505.8,0.225]
[1756424864420,0.4717,4505.9,4505.8,0.225]
[1756424864819,0.2826,4505.9,4505.8,0.225]
[1756424865120,0.4717,4505.9,4505.8,0.225]
[1756424865515,0.2826,4505.8,4505.7,0.225]
[1756424865824,0.4717,4505.8,4505.7,0.225]
[1756424866322,0.17915431,4507.2,4505.7,0.44687]
[1756424866524,0.1891,4506.2,4506.1,0.22187]
[1756424866717,0.4717,4506.2,4506.1,0.22187]
[1756424866926,0.4717,4506.2,4505.7,0.225]
[1756424867221,0.4717,4506.2,4506.1,0.22187]
[1756424867721,0.4717,4506.2,4505.7,0.225]
[1756424867916,0.4717,4506.2,4506.1,0.22187]
[1756424868312,0.4717,4506.2,4505.7,0.225]
[1756424868514,0.4717,4506.2,4506.1,0.22187]
[1756424868921,0.4717,4506.2,4505.7,0.225]
[1756424869121,0.4717,4506.2,4506.1,0.22187]
[1756424869526,0.4717,4506.2,4505.7,0.225]
[1756424869724,0.4717,4506.2,4506.1,0.22187]
[1756424870023,0.4717,4505.9,4505.8,0.225]
[1756424871423,0.2826,4505.9,4505.8,0.225]
[1756424872021,0.2826,4507.5,4505.8,0.225]
[1756424872219,8.926,4507.6,4506.3,0.22187]
[1756424872220,0.4717,4506.4,4506.3,0.22187]
[1756424872517,0.4717,4506.4,4505.8,0.225]
[1756424872723,0.4717,4506.4,4506.3,0.22187]
[1756424873225,0.4717,4506.4,4505.8,0.225]
[1756424873426,0.4717,4506.4,4506.3,0.22187]
[1756424873925,0.18241798,4507.5,4505.1,1.99481288]
[1756424874125,0.2826,4506.1,4505.2,0.225]
[1756424874326,0.2826,4506.1,4505.2,0.44691]
[1756424874527,0.2826,4507.4,4505.2,0.225]
[1756424874730,0.4717,4506.3,4506.2,0.22187]
[1756424883232,0.4717,4506.3,4505.0,1.99481288]
[1756424883629,9.101334,4507.6,4504.6,31.97]
[1756424883630,0.4717,4505.2,4505.1,0.178]
[1756424883832,0.2826,4507.5,4505.1,40.978]
[1756424884136,0.4717,4505.9,4505.8,0.22187]
[1756424884528,0.4717,4505.9,4505.1,40.978]
[1756424884835,0.4717,4505.9,4505.8,0.22187]
[1756424885325,0.4717,4505.9,4505.1,40.978]
[1756424885526,0.2826,4505.9,4505.8,0.22187]
[1756424885730,0.2826,4505.9,4505.8,0.44687]
[1756424885931,0.2826,4505.9,4505.8,0.225]
[1756424886431,8.926,4507.6,4505.8,0.225]
[1756424886432,0.2931,4507.5,4505.8,0.225]
[1756424886633,0.2931,4507.5,4506.4,0.22187]
[1756424886634,0.4805,4506.5,4506.4,0.22187]
[1756424886831,0.4805,4506.5,4505.8,0.44689]
[1756424887028,0.2931,4508.3,4505.8,0.225]
[1756424887332,0.4805,4507.3,4506.0,1.99481288]
[1756424887533,0.4805,4507.3,4505.9,0.22187]
[1756424887534,0.4805,4507.3,4506.1,1.99481288]
[1756424887730,0.4805,4507.3,4507.2,0.22187]
[1756424893034,0.4805,4507.3,4507.2,0.44687]
[1756424893635,8.926,4508.5,4507.2,0.44687]
[1756424893834,0.5520135,4508.4,4507.2,0.225]
[1756424894034,0.1874,4508.4,4507.6,1.99481288]
[1756424894242,1.9,4510.2,4507.7,41.026]
[1756424894443,0.2931,4510.0,4507.7,41.026]
[1756424894738,0.4805,4508.5,4508.4,0.22187]
[1756424894941,0.4805,4508.5,4508.4,0.226]
[1756424895335,0.4805,4508.5,4508.4,0.44787]
[1756424899136,1.9,4510.2,4508.4,0.44787]
[1756424899338,0.51486,4510.1,4508.4,0.226]
[1756424899538,0.1874,4509.2,4509.1,0.22187]
[1756424899732,0.4805,4509.2,4509.1,0.22187]
[1756424899936,0.4805,4509.2,4509.0,0.226]
[1756424900139,0.4805,4509.2,4509.1,0.22187]
[1756424900539,0.4805,4509.2,4509.0,0.226]
[1756424900739,0.4805,4509.1,4507.7,40.8]
[1756424900940,0.1874,4508.8,4508.7,0.22187]
[1756424901138,0.4805,4508.8,4508.7,0.44787]
[1756424902144,0.4805,4508.8,4508.7,0.22187]
[1756424902349,0.4805,4508.8,4508.7,0.44787]
[1756424903448,0.4805,4508.8,4508.7,0.22187]
[1756424903650,0.1874,4508.7,4508.6,0.225]
[1756424903842,0.4805,4508.7,4508.6,0.225]
[1756424906747,0.4805,4508.7,4507.7,40.8]
[1756424906748,0.1874,4508.7,4507.7,40.8]
[1756424906947,0.4805,4508.6,4507.8,0.44682]
[1756424907149,0.1874,4507.9,4507.8,0.225]
[1756424907352,0.4805,4507.9,4507.8,0.225]
[1756424908953,0.2931,4507.9,4507.8,0.225]
[1756424909849,0.4805,4507.9,4507.8,0.225]
[1756424910050,0.1874,4507.9,4507.7,40.8]
[1756424910354,0.2931,4507.8,4507.7,40.8]
[1756424910649,0.2931,4507.8,4507.7,41.025]
[1756424910849,0.2931,4507.8,4507.7,41.24687]
[1756424912450,0.4805,4507.8,4507.7,0.44687]
[1756424912654,0.2931,4507.8,4507.7,0.44687]
[1756424912852,0.03,4510.0,4507.7,0.44687]
[1756424913057,0.2931,4509.8,4507.7,0.225]
[1756424913355,0.4805,4508.5,4507.7,0.225]
[1756424913556,0.2931,4508.5,4507.8,0.62104]
[1756424913759,1.9,4510.2,4507.8,0.62104]
[1756424914054,0.2931,4510.0,4507.8,0.39926]
[1756424914254,0.1874,4509.0,4508.9,0.22187]
[1756424914454,0.4805,4509.0,4508.9,0.44687]
[1756424916152,0.1874,4509.0,4508.0,40.8]
[1756424916353,0.1979,4508.7,4508.6,0.22187]
[1756424916550,0.4808,4508.7,4508.6,0.44687]
[1756424916854,0.4808,4508.1,4508.0,40.8]
[1756424917053,0.4808,4508.1,4508.0,41.025]
[1756424917253,0.4808,4508.1,4508.0,41.24687]
[1756424917550,0.2829,4508.1,4508.0,41.02187]
[1756424917755,1.9,4510.2,4508.0,41.24687]
[1756424918057,0.2829,4510.0,4508.0,41.025]
[1756424918258,0.1979,4508.5,4508.0,41.025]
[1756424918559,0.22178,4510.0,4508.0,41.025]
[1756424918758,0.1979,4508.6,4508.5,0.22187]
[1756424919059,0.4808,4508.6,4508.5,0.44687]